fUST/lending_fUST_20250522
["ID","MTS","AMOUNT","RATE_DAILY","PERIOD"]
[361868510,1747854639549,-265.25,0.00024249,2]
[361868511,1747854639559,-418.12245141,0.00024314,10]
[361868512,1747854639570,-418.12245141,0.00024383,11]
[361868513,1747854639580,-430.0,0.00024414,2]
[361868514,1747854639590,-418.12245141,0.00024452,11]
[361868515,1747854639600,-150.0,0.00024454,2]
[361868517,1747854639610,-150.0,0.00024454,2]
[361868518,1747854639620,-960.0,0.00024454,2]
[361868519,1747854639629,-602.57137255,0.00024487,2]
[361868520,1747854639639,-418.12245141,0.00024521,11]
[361868521,1747854639649,-500.0,0.00024523,2]
[361868522,1747854639658,-282.15,0.00024523,2]
[361868523,1747854639670,-418.12245141,0.0002459,11]
[361868524,1747854639679,-500.0,0.00024593,2]
[361868526,1747854639689,-430.0,0.00024657,2]
[361868528,1747854639699,-430.0,0.00024657,2]
[361868530,1747854639708,-430.0,0.00024657,2]
[361868531,1747854639718,-430.0,0.00024657,2]
[361868532,1747854639728,-418.12245141,0.00024659,11]
[361868534,1747854639738,-430.0,0.00024688,2]
[361868536,1747854639747,-418.12245141,0.00024728,11]
[361868537,1747854639756,-418.12245141,0.00024797,11]
[361868538,1747854639766,-514.04942376,0.00024797,2]
[361868539,1747854639775,-5263.72794708,0.000248,3]
[361868540,1747854639791,-8745.78903689,0.000248,3]
[361868541,1747854639800,-10856.1305273,0.000248,2]
[361868542,1747854639809,-153.47136468,0.000248,2]
[361868543,1747854639819,-150.5,0.0002483,120]
[361868544,1747854639830,-5536.0,0.0002483,120]
[361868545,1747854639841,-5428.06526363,0.0002483,2]
[361868547,1747854639851,-1914.04286158,0.00024831,2]
[361868549,1747854639860,-5536.0,0.0002484,120]
[361868551,1747854639871,-150.5,0.0002484,120]
[361868552,1747854639881,-621.7577476,0.00024849,2]
[361868553,1747854639890,-500.0,0.00024849,2]
[361868554,1747854639900,-642.46119205,0.00024849,2]
[361868555,1747854639911,-5536.0,0.0002485,120]
[361868556,1747854639922,-150.5,0.0002485,120]
[361868557,1747854639932,-418.12245141,0.00024866,12]
[361868558,1747854639943,-344.80725714,0.00024867,2]
[361868559,1747854639953,-5536.0,0.0002487,120]
[361868560,1747854639963,-150.5,0.0002487,120]
[361868561,1747854639972,-202.10439689,0.00024873,2]
[361868562,1747854639995,-500.0,0.00024873,2]
[361868563,1747854640005,-500.0,0.00024873,2]
[361868564,1747854640016,-600.0,0.00024873,2]
[361868565,1747854640026,-150.0,0.00024873,2]
[361868566,1747854640036,-501.08412304,0.00024873,2]
[361868567,1747854640046,-500.0,0.00024873,2]
[361868568,1747854640056,-150.5,0.0002488,120]
[361868570,1747854640066,-5536.0,0.0002488,120]
[361868572,1747854640077,-5428.06526363,0.0002488,2]
[361868573,1747854640087,-150.5,0.0002489,120]
[361868574,1747854640097,-5536.0,0.0002489,120]
[361868575,1747854640107,-5713.51412833,0.000249,2]
[361868577,1747854640117,-23093.75,0.000249,2]
[361868578,1747854640127,-7635.22,0.000249,7]
[361868579,1747854640137,-151.0,0.000249,2]
[361868580,1747854640148,-617583.326279,0.000249,2]
[361868581,1747854640158,-1000.0,0.00024932,2]
[361868582,1747854640170,-418.12245141,0.00024934,12]
[361868583,1747854640180,-430.0,0.00024962,2]
[361868584,1747854640190,-202.0,0.00025,120]
[361868585,1747854640200,-418.12245141,0.00025003,12]
[361868586,1747854640211,-1000.0,0.00025068,2]
[361868587,1747854640220,-312.99539182,0.00025072,3]
[361868588,1747854640231,-418.12245141,0.00025072,12]
[361868589,1747854640240,-500.0,0.00025141,30]
[361868590,1747854640250,-418.12245141,0.00025141,12]
[361868591,1747854640260,-161.133462,0.00025166,4]
[361868592,1747854640270,-1000.0,0.00025205,2]
[361868593,1747854640280,-418.12245141,0.0002521,12]
[361868594,1747854640290,-1914.04286158,0.00025229,2]
[361868595,1747854640299,-430.0,0.00025236,2]
[361868596,1747854640310,-418.12245141,0.00025279,12]
[361868597,1747854640319,-5428.06526363,0.00025332,2]
[361868598,1747854640329,-1000.0,0.00025342,2]
[361868599,1747854640339,-418.12245141,0.00025348,13]
[361868600,1747854640348,-418.12245141,0.00025417,13]
[361868601,1747854640358,-1200.0,0.00025421,2]
[361868602,1747854640368,-681.35,0.00025453,5]
[361868603,1747854640378,-1000.0,0.00025479,2]
[361868604,1747854640388,-418.12245141,0.00025486,13]
[361868605,1747854640398,-323.17,0.000255,31]
[361868606,1747854640408,-323.17,0.000255,31]
[361868607,1747854640418,-323.17,0.000255,31]
[361868608,1747854640428,-323.17,0.000255,31]
[361868609,1747854640438,-323.17,0.000255,31]
[361868610,1747854640448,-323.17,0.000255,31]
[361868611,1747854640458,-323.17,0.000255,31]
[361868612,1747854640467,-323.17,0.000255,31]
[361868613,1747854640477,-323.17,0.000255,31]
[361868614,1747854640487,-323.17,0.000255,31]
[361868615,1747854640497,-323.17,0.000255,31]
[361868616,1747854640506,-323.17,0.000255,31]
[361868617,1747854640515,-323.17,0.000255,31]
[361868618,1747854640526,-323.17,0.000255,31]
[361868619,1747854640535,-323.17,0.000255,31]
[361868620,1747854640545,-323.17,0.000255,31]
[361868621,1747854640555,-430.0,0.0002551,2]
[361868622,1747854640565,-418.12245141,0.00025555,13]
[361868623,1747854640576,-5428.06526363,0.00025598,2]
[361868624,1747854640586,-2000.0,0.000256,2]
[361868625,1747854640596,-159.391008,0.000256,30]
[361868626,1747854640607,-151.0,0.000256,12]
[361868627,1747854640617,-150.0,0.000256,5]
[361868628,1747854640626,-1957.037771,0.000256,5]
[361868629,1747854640635,-2636.84739534,0.000256,2]
[361868630,1747854640646,-2636.84739529,0.00025603,2]
[361868631,1747854640656,-300.0,0.00025604,2]
[361868632,1747854640666,-430.0,0.00025604,2]
[361868633,1747854640676,-450.0,0.00025604,2]
[361868634,1747854640686,-450.0,0.00025604,2]
[361868635,1747854640696,-200.0,0.00025604,2]
[361868636,1747854640706,-450.0,0.00025604,2]
[361868637,1747854640715,-300.0,0.00025604,2]
[361868638,1747854640725,-450.0,0.00025604,2]
[361868639,1747854640735,-450.0,0.00025604,2]
[361868640,1747854640745,-430.0,0.00025604,2]
[361868641,1747854640754,-450.0,0.00025604,2]
[361868642,1747854640764,-430.0,0.00025604,2]
[361868643,1747854640774,-450.0,0.00025604,2]
[361868644,1747854640784,-430.0,0.00025604,2]
[361868645,1747854640794,-450.0,0.00025604,2]
[361868646,1747854640804,-450.0,0.00025604,2]
[361868647,1747854640813,-450.0,0.00025604,2]
[361868648,1747854640824,-404.14285129,0.00025604,2]
[361868649,1747854640835,-455.28506817,0.00025604,2]
[361868650,1747854640846,-401.29663625,0.00025604,2]
[361868651,1747854640856,-401.78,0.00025604,2]
[361868652,1747854640865,-430.0,0.00025604,2]
[361868653,1747854640875,-354.40250561,0.00025604,2]
[361868654,1747854640885,-2636.84739529,0.00025606,2]
[361868655,1747854640895,-2636.84739529,0.00025609,2]
[361868656,1747854640904,-2636.84739529,0.00025612,2]
[361868657,1747854640916,-2636.84739529,0.00025615,2]
[361868658,1747854640927,-1000.0,0.00025616,2]
[361868659,1747854640937,-2636.84739529,0.00025618,2]
[361868660,1747854640946,-2636.84739529,0.00025621,2]
[361868661,1747854640957,-2636.84739529,0.00025624,2]
[361868662,1747854640966,-418.12245141,0.00025624,13]
[361868663,1747854640975,-1914.04286158,0.00025627,2]
[361868664,1747854640985,-2636.84739529,0.00025627,2]
[361868665,1747854640995,-500.0,0.00025628,9]
[361868666,1747854641005,-160.0,0.0002564,3]
[361868667,1747854641015,-160.0,0.0002564,5]
[361868668,1747854641025,-681.35,0.00025653,6]
[361868669,1747854641034,-210.0,0.0002568,120]
[361868670,1747854641043,-5536.0,0.0002568,120]
[361868671,1747854641053,-176.801964,0.0002568,20]
[361868672,1747854641063,-159.391008,0.0002568,20]
[361868673,1747854641073,-10856.1305273,0.0002568,2]
[361868674,1747854641082,-500.0,0.00025689,30]
[361868675,1747854641091,-210.0,0.0002569,120]
[361868676,1747854641101,-5536.0,0.0002569,120]
[361868677,1747854641110,-213.48,0.0002569,120]
[361868678,1747854641120,-211.71,0.0002569,120]
[361868679,1747854641129,-151.0,0.0002569,7]
[361868680,1747854641139,-151.0,0.0002569,7]
[361868681,1747854641149,-151.0,0.0002569,7]
[361868682,1747854641159,-64814.84567451,0.0002569,2]
[361868683,1747854641175,-321.93748909,0.0002569,2]
[361868684,1747854641185,-5541.03,0.00025693,120]
[361868685,1747854641195,-418.12245141,0.00025693,13]
[361868686,1747854641205,-8147.25,0.000257,7]
[361868687,1747854641215,-148299.55809258,0.000257,7]
[361868701,1747854642625,-125060.8083825,0.000257,7]
[361868702,1747854642750,-2167.90529925,0.000257,7]
[361868704,1747854642958,-151.0,0.00025604,2]
[361868705,1747854642968,-151.0,0.0002569,2]
[361868706,1747854642979,-151.0,0.0002569,2]
[361868707,1747854642988,-28085.91138081,0.000257,7]
[361868708,1747854643000,-590.424995,0.000257,7]
[361868710,1747854643012,-16383.84841,0.000257,7]
[361868722,1747854643287,-42755.61277767,0.000257,7]
[361868733,1747854645883,-151.0,0.0002569,2]
[361868734,1747854645899,-21291.544981,0.000257,7]
[361868735,1747854645934,-16094.93044524,0.000257,7]
[361868736,1747854645946,-152780.79523595,0.000257,7]
[361868737,1747854645956,-70557.98160405,0.000257,2]
[361868738,1747854645968,-499.99913388,0.000257,2]
[361868739,1747854646040,-4134.84466758,0.000257,2]
[361868740,1747854646052,-5159.01715628,0.000257,2]
[361868742,1747854646115,-10903.26988278,0.000257,2]
[361868754,1747855254576,158.538654,0.00013699,2]
[361868760,1747855633123,-911.87785946,0.000198,2]
[361868774,1747855671090,-150.0,0.000189,2]
[361868775,1747855671115,-4088.12214054,0.000198,2]
[361868776,1747855671137,-232.11479786,0.000199,2]
[361868777,1747855671159,-175.778308,0.0002,2]
[361868778,1747855671185,-158.538654,0.00020548,2]
[361868779,1747855671207,-151.25167377,0.00020902,2]
[361868780,1747855671234,-422.71322487,0.00021693,2]
[361868781,1747855671255,-164.0,0.00022,2]
[361868782,1747855671281,-171.77017257,0.00022086,5]
[361868783,1747855671303,-176.2645,0.00022702,2]
[361868784,1747855671325,-156.58770561,0.00022769,5]
[361868785,1747855671346,-171.77017256,0.00022775,5]
[361868786,1747855671373,-603.91407772,0.000229,8]
[361868787,1747855671395,-500.0,0.00023,30]
[361868788,1747855671416,-500.0,0.00023,30]
[361868789,1747855671438,-500.0,0.00023,30]
[361868790,1747855671460,-500.0,0.00023,30]
[361868791,1747855671481,-500.0,0.00023,30]
[361868792,1747855671503,-500.0,0.00023,30]
[361868793,1747855671524,-500.0,0.00023,30]
[361868794,1747855671546,-500.0,0.00023,30]
[361868795,1747855671567,-80.1745725,0.00023,30]
[361868804,1747855721760,452.99999913,0.0002,120]
[361868809,1747855748063,-441.70749648,0.0001573,2]
[361868810,1747855755118,-666.66598735,0.0001573,2]
[361868811,1747855755139,-170.0,0.00022,2]
[361868812,1747855755161,-430.0,0.0002231,2]
[361868813,1747855755184,-510.30172399,0.0002231,2]
[361868814,1747855755205,-1253.69130747,0.000226,7]
[361868815,1747855755231,-619.8254275,0.00023,30]
[361868816,1747855755258,-339.55831926,0.00023003,8]
[361868817,1747855770148,-264.3557583,0.00023003,8]
[361868818,1747855770170,-164.0,0.00023014,7]
[361868819,1747855770195,-603.91407756,0.00023107,8]
[361868820,1747855779868,156.5877056,0.00022775,5]
[361868821,1747855791339,85.85097012,0.00021864,2]
[361868822,1747855791362,414.14902988,0.00021864,2]
[361868855,1747855831979,-463.5,0.00023397,15]
[361868857,1747855831989,-422.71322487,0.0002362,2]
[361868859,1747855831998,-300.0,0.00023623,2]
[361868860,1747855832008,-1200.0,0.00023623,2]
[361868862,1747855832017,-276.34876704,0.00023623,2]
[361868876,1747855832139,-252.76001603,0.00023623,2]
[361868878,1747855832149,-19309.78094953,0.00023624,2]
[361868945,1747855838023,-300.0,0.00023623,2]
[361868946,1747855838033,-4471.85272007,0.00023624,2]
[361868947,1747855838077,-4582.70992985,0.00023624,2]
[361868966,1747855840214,-1000.012032,0.00023624,2]
[361868980,1747855843293,-16774.22516416,0.00023624,2]
[361868981,1747855843305,-3100.0,0.00023624,2]
[361868988,1747855898003,430.0,0.0002231,2]
[361868989,1747855912639,83.95851167,0.00022853,2]
[361868990,1747856002015,392.0,0.00015,2]
[361868991,1747856305552,162.37747,0.00013699,2]
[361869003,1747856841128,-1452.37828818,0.00020329,2]
[361869101,1747856954088,-1400.86715002,0.00020329,2]
[361869102,1747856967098,-1468.43932685,0.00020329,2]
[361869103,1747856968102,-678.31523495,0.00020329,2]
[361869104,1747856968126,-162.37747,0.00020951,2]
[361869105,1747856968147,-157.323,0.00021118,2]
[361869106,1747856968168,-160.0,0.00021728,2]
[361869107,1747856968191,-328.1263046,0.00022274,2]
[361869108,1747856968213,-176.2645,0.00022365,2]
[361869109,1747856968235,-422.71322487,0.00022609,2]
[361869110,1747856968261,-800.87495533,0.000229,8]
[361869111,1747856968285,-129.97491025,0.00022999,2]
[361869114,1747856974205,-300.02508975,0.00022999,2]
[361869115,1747856974227,-430.0,0.00022999,2]
[361869116,1747856974248,-500.0,0.00023,30]
[361869117,1747856974269,-500.0,0.00023,30]
[361869118,1747856974291,-500.0,0.00023,30]
[361869119,1747856974312,-500.0,0.00023,30]
[361869120,1747856974335,-500.0,0.00023,30]
[361869121,1747856974361,-800.87495515,0.00023003,8]
[361869122,1747856974385,-450.0,0.00023106,2]
[361869123,1747856974407,-419.0999551,0.00023106,2]
[361869144,1747857032251,-161.37536535,0.00022875,2]
[361869146,1747857038274,-2813.68867907,0.00022875,2]
[361869147,1747857038285,-11.6500449,0.00023106,2]
[361869148,1747857038294,-1291.56,0.00023106,2]
[361869149,1747857038304,-430.0,0.00023106,2]
[361869150,1747857038314,-430.0,0.00023106,2]
[361869151,1747857038324,-430.0,0.00023106,2]
[361869152,1747857038334,-430.0,0.00023106,2]
[361869153,1747857038343,-430.0,0.00023273,2]
[361869154,1747857038353,-181.6,0.00023278,2]
[361869155,1747857038364,-430.0,0.00023278,2]
[361869156,1747857038373,-430.0,0.00023278,2]
[361869157,1747857038383,-3495.55995993,0.00023314,2]
[361869158,1747857038398,-21754.46293733,0.00023314,2]
[361869160,1747857038412,-272.5430213,0.00023314,2]
[361869162,1747857038424,-3506.76,0.00023314,2]
[361869245,1747857043312,-4206.8744175,0.00023314,2]
[361869252,1747857046314,-576.87,0.00023278,2]
[361869253,1747857046324,-16763.79966394,0.00023314,2]
[361869254,1747857046334,-487.94352408,0.0002338,2]
[361869258,1747857320052,160.460525,0.00013699,2]
[361869317,1747858045141,-164.0,0.00017178,3]
[361869318,1747858045163,-837.09835211,0.0002,30]
[361869322,1747858147137,-1359.91919348,0.0002,30]
[361869323,1747858147160,-5000.0,0.00020329,2]
[361869324,1747858147184,-160.460525,0.00020951,2]
[361869325,1747858147211,-912.71942834,0.000219,6]
[361869326,1747858147234,-300.0,0.00021951,2]
[361869327,1747858147257,-9853.8685091,0.00021952,2]
[361869328,1747858147282,-912.71942824,0.00022038,6]
[361869329,1747858147307,-912.71942824,0.00022176,6]
[361869330,1747858147333,-912.71942824,0.00022314,7]
[361869331,1747858147361,-912.71942824,0.00022452,7]
[361869332,1747858147386,-912.71942824,0.0002259,7]
[361869333,1747858147410,-912.71942824,0.00022728,7]
[361869334,1747858147432,-422.71322487,0.00022754,2]
[361869335,1747858147457,-629.49017679,0.00022824,2]
[361869336,1747858147481,-912.71942824,0.00022866,8]
[361869337,1747858147503,-521.0,0.00022999,2]
[361869338,1747858147525,-500.0,0.00023,30]
[361869339,1747858147546,-500.0,0.00023,30]
[361869340,1747858147567,-407.8833117,0.00023002,2]
[361869341,1747858147587,-258.11360058,0.00023002,2]
[361869342,1747858147607,-500.0,0.00023002,2]
[361869343,1747858147630,-500.0,0.00023002,2]
[361869344,1747858147651,-500.0,0.00023002,2]
[361869345,1747858147671,-500.0,0.00023002,2]
[361869346,1747858147695,-500.0,0.00023002,2]
[361869347,1747858147718,-500.0,0.00023002,2]
[361869348,1747858147739,-500.0,0.00023002,2]
[361869349,1747858147762,-500.0,0.00023002,2]
[361869350,1747858147784,-500.0,0.00023002,2]
[361869351,1747858147805,-513.29079479,0.00023002,2]
[361869352,1747858147828,-500.0,0.00023002,2]
[361869353,1747858147851,-500.0,0.00023002,2]
[361869354,1747858147871,-492.30291084,0.00023002,2]
[361869355,1747858147893,-500.0,0.00023002,2]
[361869356,1747858147920,-500.0,0.00023002,2]
[361869357,1747858147944,-500.0,0.00023002,2]
[361869358,1747858147973,-500.0,0.00023002,2]
[361869359,1747858147996,-582.21212561,0.00023002,2]
[361869360,1747858148021,-500.0,0.00023002,2]
[361869361,1747858148047,-500.0,0.00023002,2]
[361869362,1747858148070,-346.54113849,0.00023002,2]
[361869363,1747858148096,-500.0,0.00023002,2]
[361869364,1747858148119,-500.0,0.00023002,2]
[361869365,1747858148145,-500.0,0.00023002,2]
[361869366,1747858148167,-500.0,0.00023002,2]
[361869367,1747858148191,-500.0,0.00023002,2]
[361869368,1747858148222,-500.0,0.00023002,2]
[361869369,1747858148247,-500.0,0.00023002,2]
[361869370,1747858148273,-500.0,0.00023002,2]
[361869371,1747858148297,-500.0,0.00023002,2]
[361869372,1747858148320,-500.0,0.00023002,2]
[361869373,1747858148343,-500.0,0.00023002,2]
[361869374,1747858148367,-500.0,0.00023002,2]
[361869375,1747858148391,-500.0,0.00023002,2]
[361869376,1747858148414,-500.0,0.00023002,2]
[361869377,1747858148437,-559.67766426,0.00023002,2]
[361869378,1747858148476,-252.0,0.00023002,2]
[361869379,1747858148498,-10658.02448755,0.00023003,3]
[361869380,1747858148521,-31537.64145731,0.00023003,2]
[361869381,1747858148546,-912.71942824,0.00023003,8]
[361869382,1747858148568,-300.0,0.00023038,2]
[361869383,1747858148773,-200.0,0.00023039,30]
[361869384,1747858148798,-430.0,0.00023102,2]
[361869385,1747858148821,-430.0,0.00023102,2]
[361869386,1747858148843,-500.0,0.00023102,2]
[361869387,1747858148864,-317.36,0.00023102,2]
[361869388,1747858148885,-430.0,0.00023103,2]
[361869389,1747858148906,-450.0,0.00023103,2]
[361869390,1747858148928,-1217.42,0.00023103,2]
[361869391,1747858148951,-430.0,0.00023103,2]
[361869392,1747858148995,-500.0,0.00023103,2]
[361869393,1747858149039,-193.04,0.00023103,2]
[361869394,1747858149080,-450.0,0.00023104,2]
[361869395,1747858149116,-500.0,0.00023104,2]
[361869396,1747858149139,-411.23,0.00023104,2]
[361869397,1747858149160,-894.64583333,0.00023116,2]
[361869398,1747858149182,-104.68695714,0.00023116,2]
[361869399,1747858155130,-727.46585827,0.00022884,2]
[361869400,1747858155152,-55.31304286,0.00023116,2]
[361869401,1747858155181,-912.71942824,0.00023141,8]
[361869402,1747858166861,370.0,0.00023103,2]
[361869403,1747858168859,378.62557176,0.00023103,2]
[361869404,1747858168881,51.37442824,0.00023103,2]
[361869406,1747858189108,430.0,0.00023103,2]
[361869407,1747858199975,430.0,0.00023003,2]
[361869408,1747858221786,73.74040437,0.00023103,2]
[361869409,1747858221808,356.25959563,0.00023103,2]
[361869410,1747858222799,430.0,0.00023003,2]
[361869623,1747858234574,48.27694409,0.00023103,2]
[361869624,1747858234597,381.72305591,0.00023103,2]
[361869700,1747858236585,430.0,0.00022313,2]
[361869701,1747858236828,135.19016768,0.00022587,2]
[361869716,1747858238288,-305.01551178,0.00022587,2]
[361869717,1747858238303,-148.65692367,0.00023003,2]
[361869718,1747858238316,-281.34307633,0.00023003,2]
[361869719,1747858238326,-224.31,0.00023102,2]
[361869720,1747858238336,-102.82871199,0.00023103,2]
[361869721,1747858238348,-327.17128801,0.00023103,2]
[361869722,1747858238359,-430.0,0.00023277,2]
[361869723,1747858238370,-430.0,0.00023277,2]
[361869724,1747858238380,-430.0,0.00023277,2]
[361869725,1747858238390,-1672.90774059,0.00023287,2]
[361869726,1747858238488,200.0,0.00022166,2]
[361869734,1747858238776,200.0,0.00019774,2]
[361869743,1747858240477,-430.0,0.00023003,2]
[361869744,1747858240488,-430.0,0.00023103,2]
[361869745,1747858240498,-430.0,0.00023277,2]
[361869746,1747858240508,-4300.52225941,0.00023287,2]
[361869747,1747858240518,-200.0,0.00023313,30]
[361869748,1747858240527,-1217.42,0.00023377,2]
[361869749,1747858240537,-430.0,0.00023377,2]
[361869750,1747858240549,-430.0,0.00023377,2]
[361869751,1747858240558,-430.0,0.00023379,2]
[361869752,1747858240568,-151.0,0.0002338,2]
[361869753,1747858240578,-300.0,0.00023416,2]
[361869755,1747858240587,-364.1711418,0.00023416,2]
[361869756,1747858240596,-33152.18711709,0.00023417,2]
[361869782,1747858243413,-430.0,0.00023003,2]
[361869783,1747858243424,-430.0,0.00023277,2]
[361869785,1747858243434,-335.5,0.00023369,15]
[361869786,1747858243443,-151.0,0.00023417,2]
[361869787,1747858243454,-151.0,0.00023417,2]
[361869788,1747858243464,-16847.81288291,0.00023417,2]
[361869790,1747858243473,-500.0,0.00023519,2]
[361869791,1747858243483,-500.0,0.00023519,2]
[361869792,1747858243493,-500.0,0.00023519,2]
[361869794,1747858243502,-500.0,0.00023519,2]
[361869796,1747858243511,-243.58073372,0.00023519,2]
[361869798,1747858243521,-500.0,0.00023519,2]
[361869799,1747858243530,-315.49518493,0.00023519,2]
[361869800,1747858243539,-500.0,0.00023519,2]
[361869801,1747858243550,-500.0,0.0002352,2]
[361869802,1747858243559,-430.0,0.0002352,2]
[361869803,1747858243569,-430.0,0.0002352,2]
[361869804,1747858243578,-430.0,0.00023551,2]
[361869805,1747858243587,-430.0,0.00023551,2]
[361869806,1747858243598,-430.0,0.00023551,2]
[361869807,1747858243609,-430.0,0.00023551,2]
[361869808,1747858243619,-430.0,0.00023551,2]
[361869809,1747858243629,-200.0,0.00023587,30]
[361869810,1747858243639,-500.0,0.0002364,2]
[361869811,1747858243648,-15768.82072866,0.00023651,2]
[361869812,1747858243657,-1217.42,0.00023651,2]
[361869813,1747858243667,-430.0,0.00023651,2]
[361869814,1747858243676,-430.0,0.00023651,2]
[361869815,1747858243686,-500.0,0.00023652,2]
[361869816,1747858243696,-430.0,0.00023653,2]
[361869817,1747858243706,-300.0,0.0002369,2]
[361869818,1747858243715,-1185.50935466,0.00023759,2]
[361869819,1747858243724,-629.49017679,0.00023772,2]
[361869820,1747858243734,-500.0,0.00023794,2]
[361869821,1747858243743,-430.0,0.00023794,2]
[361869822,1747858243752,-430.0,0.00023794,2]
[361869823,1747858243762,-500.0,0.00023794,2]
[361869824,1747858243772,-500.0,0.00023821,2]
[361869825,1747858243781,-430.0,0.00023825,2]
[361869826,1747858243791,-430.0,0.00023825,2]
[361869827,1747858243802,-430.0,0.00023825,2]
[361869828,1747858243811,-430.0,0.00023825,2]
[361869829,1747858243821,-316.40632534,0.00023849,2]
[361869830,1747858243831,-200.0,0.00023861,30]
[361869831,1747858243841,-347.84935732,0.00023897,3]
[361869832,1747858243851,-1217.42,0.00023925,2]
[361869833,1747858243861,-430.0,0.00023925,2]
[361869834,1747858243870,-430.0,0.00023927,2]
[361869835,1747858243881,-1268.64034896,0.00023938,2]
[361869836,1747858243891,-300.0,0.00023964,2]
[361869837,1747858243901,-160.0,0.00023999,2]
[361869838,1747858243911,-5329.01224378,0.00024,3]
[361869839,1747858243922,-113527.20913954,0.00024,21]
[361869840,1747858243931,-500.0,0.00024068,2]
[361869841,1747858243941,-430.0,0.00024068,2]
[361869842,1747858243951,-430.0,0.00024099,2]
[361869843,1747858243961,-430.0,0.00024099,2]
[361869844,1747858243973,-430.0,0.00024099,2]
[361869845,1747858243983,-430.0,0.00024099,2]
[361869846,1747858243993,-567.78,0.000241,2]
[361869847,1747858244002,-1268.64034895,0.00024154,2]
[361869848,1747858244012,-151.0,0.00024185,2]
[361869849,1747858244023,-207.4,0.00024185,2]
[361869850,1747858244033,-500.0,0.00024188,2]
[361869851,1747858244045,-1217.42,0.00024199,2]
[361869852,1747858244055,-430.0,0.00024199,2]
[361869853,1747858244215,-500.0,0.000242,2]
[361869854,1747858244226,-430.0,0.00024201,2]
[361869855,1747858244236,-300.0,0.00024238,2]
[361869856,1747858244246,-45029.69,0.000243,9]
[361869857,1747858244256,-30327.51,0.000243,9]
[361869858,1747858244267,-116192.99,0.000243,9]
[361869859,1747858244277,-500.0,0.00024342,2]
[361869860,1747858244286,-440.45,0.00024342,2]
[361869861,1747858244296,-1268.64034895,0.00024369,2]
[361869862,1747858244306,-430.0,0.00024373,2]
[361869863,1747858244315,-430.0,0.00024373,2]
[361869864,1747858244325,-330.64,0.00024373,2]
[361869865,1747858244335,-430.0,0.00024373,2]
[361869866,1747858244344,-3982.48180482,0.00024412,2]
[361869867,1747858244354,-1937.0,0.00024445,120]
[361869868,1747858244363,-1937.0,0.00024455,120]
[361869869,1747858244374,-269.5,0.00024455,120]
[361869870,1747858244383,-1937.0,0.00024465,120]
[361869871,1747858244393,-150.5,0.00024465,120]
[361869872,1747858244402,-200.0,0.00024467,7]
[361869873,1747858244411,-200.75900267,0.00024467,7]
[361869874,1747858244421,-1217.42,0.00024473,2]
[361869875,1747858244430,-430.0,0.00024473,2]
[361869876,1747858244439,-430.0,0.00024475,2]
[361869877,1747858244449,-72717.4811,0.000245,2]
[361869878,1747858244458,-300.0,0.00024512,2]
[361869879,1747858244468,-200.0,0.00024558,2]
[361869880,1747858244477,-1268.64034895,0.00024585,2]
[361869881,1747858244486,-151.0,0.000246,7]
[361869882,1747858244496,-500.0,0.00024616,2]
[361869883,1747858244505,-152.03,0.0002464,120]
[361869884,1747858244514,-430.0,0.00024647,2]